Cogmind - Beta 11.1 @@@ ROGUE MODE // 2022.06.04 @ 00:36:44 Player: onyhow Result: Destroyed by as-03325 with Assembled Blade Performance ------------- Evolutions (0) 0 Regions Visited (2) 400 Robots Destroyed (20) 100 Value Destroyed (397) 397 Prototype IDs (0) 0 Alien Tech Used (0) 0 Bonus (0) 0 TOTAL SCORE: 897 Bonus ------- None Cogmind --------- Core Integrity 0/250 Matter 300/300 Energy 100/100 System Corruption 0% Temperature Cool (0) Movement Treading (160) Location -10/Mines Parts ------- > --- POWER (1) -------- (None) > --- PROPULSION (2) --- Light Treads > --- UTILITY (2) ------ Large Storage Unit > --- WEAPON (2) ------- (None) > --- INVENTORY (15) --- Ion Engine Large Storage Unit Huge Storage Unit High-capacity Matter Pod (200) Compact Matter Pod (28) Structural Scanner Sensor Array ECM Suite Medium Laser Heavy Assault Rifle Heavy Assault Rifle Heavy Assault Rifle Grenade Launcher Grenade Launcher Mining Laser Peak State ------------ > --- POWER ------------ Light Ion Engine > --- PROPULSION ------- Light Treads Light Treads > --- UTILITY ---------- Large Storage Unit Seismic Detector > --- WEAPON ----------- Medium Laser Heavy Assault Rifle > --- INVENTORY -------- Ion Engine Large Storage Unit Huge Storage Unit High-capacity Matter Pod Compact Matter Pod Structural Scanner Sensor Array ECM Suite Medium Laser Heavy Assault Rifle Heavy Assault Rifle Heavy Assault Rifle Grenade Launcher Grenade Launcher Mining Laser [Rating: 10] Favorites ----------- Power Light Ion Engine Engine Light Ion Engine Propulsion Aluminum Leg Treads Light Treads Leg Aluminum Leg Utility Large Storage Unit Device Tractor Beam Storage Large Storage Unit Weapon Medium Laser Energy Gun Medium Laser Ballistic Gun Heavy Assault Rifle Build | -11 -10 -10 ------- Run | Scr Mat Min Slots Evolved . | . . . Power . | . . . Propulsion . | . . . Utility . | . . . Weapon . | . . . Parts Attached 15 | 7 8 . Power 3 | 1 2 . Engine 3 | 1 2 . Core . | . . . Reactor . | . . . Propulsion 4 | 2 2 . Treads 2 | . 2 . Leg 2 | 2 . . Wheel . | . . . Hover . | . . . Flight . | . . . Utility 4 | 2 2 . Device 2 | 1 1 . Storage 2 | 1 1 . Processor . | . . . Hackware . | . . . Protection . | . . . Artifact . | . . . Weapon 4 | 2 2 . Energy Gun 2 | 2 . . Energy Cannon . | . . . Ballistic Gun 2 | . 2 . Ballistic Cannon . | . . . Launcher . | . . . Special Weapon . | . . . Impact Weapon . | . . . Slashing Weapon . | . . . Piercing Weapon . | . . . Special Melee Weapon . | . . . Unidentified Prototypes . | . . . Parts Lost 9 | . 4 5 Power 3 | . 2 1 Propulsion 2 | . 1 1 Utility 1 | . . 1 Weapon 3 | . 1 2 Highest Loss Streak 5 | . 3 5 To Critical Strikes . | . . . Average Slot Usage (%) 98 | . 99 85 Engine 13 | . 13 11 Treads 13 | . 13 25 Leg 13 | . 14 . Device 13 | . 14 7 Storage 14 | . 14 14 Energy Gun 20 | . 21 11 Ballistic Gun 7 | . 6 14 Naked Turns . | . . . Heaviest Build 29 | 13 29 29 Greatest Support 40 | 20 40 40 Greatest Overweight (x) 1 | . 1 1 Average Overweight (x) . | . . . Largest Inventory Capacity 15 | 8 15 15 Average Capacity 14 | 7 14 15 Most Carried 15 | 7 15 15 Average Carried 10 | 4 11 14 Final Capacity 15 | 8 15 15 Final Carried 15 | 6 15 15 Class Distribution -------------------- 100% | Mutant Dominant Class ---------------- Mutant | -10/Materials Mutant | -10/Mines Resources | -11 -10 -10 ----------- Run | Scr Mat Min Matter Collected 631 | 270 161 200 Remotely 77 | 10 67 . Salvage Created 690 | 79 595 16 Parts 36 | 3 33 . Haulers Intercepted . | . . . Recyclers Shooed 1 | . 1 . Parts Field Recycled . | . . . Retrieved Matter . | . . . Parts Self-Destructed . | . . . Prevented . | . . . Kills | -11 -10 -10 ------- Run | Scr Mat Min Combat Hostiles Destroyed 14 | . 13 1 Guns 14 | . 13 1 Classes Destroyed 7 | 1 5 1 Worker 1 | . 1 . Builder 1 | . 1 . Recycler 2 | 1 1 . Watcher 3 | . 3 . Swarmer 6 | . 6 . Grunt 7 | . 7 . Assembled 1 | . . 1 Best Kill Streak 3 | 1 3 1 Combat Bots Only 3 | . 3 1 Max Kills in Single Turn 1 | 1 1 1 Gunslinging . | . . . Exploded . | . . . Melee . | . . . Uniques/NPCs Destroyed . | . . . Combat | -11 -10 -10 -------- Run | Scr Mat Min Damage Taken 1070 | . 596 474 Core 281 | . 123 158 Absorbed by Shields . | . . . Core Remaining (%) 100 | 100 . . Volleys Fired 58 | 3 53 2 Largest 2 | 2 2 2 Hottest 90 | 90 90 73 Shots Fired 114 | 6 104 4 Gun 114 | 6 104 4 Cannon . | . . . Launcher . | . . . Special . | . . . Kinetic 31 | . 29 2 Thermal 57 | 3 52 2 Explosive . | . . . Electromagnetic 26 | 3 23 . Robot Hit Streak 7 | 1 7 7 Robot Miss Streak 7 | 1 7 . Penetration Max . | . . . Secondary Targets 1 | . 1 . Max Gunslinging Chain 1 | . 1 . Shots Hit Robots 59 | 3 52 4 Core Hits 31 | 2 27 2 Critical Kills . | . . . Critical Parts Destroyed . | . . . Critical Strikes 3 | . 3 . Burn 3 | . 3 . Melee Attacks . | . . . Impact . | . . . Slashing . | . . . Piercing . | . . . Sneak Attacks . | . . . Combat Hostiles . | . . . Follow-up Attacks . | . . . Damage Inflicted 925 | 37 824 64 Guns 848 | 37 751 60 Cannons . | . . . Explosions 73 | . 73 . Melee . | . . . Ramming 4 | . . 4 Kinetic 333 | . 298 35 Thermal 397 | 37 335 25 Explosive 73 | . 73 . Electromagnetic 118 | . 118 . Impact . | . . . Slashing . | . . . Piercing . | . . . Highest Corruption . | . . . Average Corruption . | . . . Corruption Purged . | . . . Corruption Blocked . | . . . Overload Shots . | . . . Overflow Damage . | . . . Projectiles . | . . . Explosions . | . . . Melee . | . . . Knockbacks . | . . . Impact . | . . . Kinetic . | . . . Secondary . | . . . Self-Inflicted Damage . | . . . Shots . | . . . Rammed 1 | . . 1 Targets Rammed 1 | . . 1 Kicked . | . . . Crushed . | . . . Highest Temperature 180 | 90 180 44 Average Temperature 67 | 48 71 16 Received Heat Transfer 251 | . 171 80 Siege Activations . | . . . Robots Corrupted . | . . . Combat Hostiles . | . . . Parts Fried . | . . . Impact Corruptions . | . . . Robots Melted . | . . . Combat Hostiles . | . . . Parts Melted 3 | . 3 . Heat Transferred 1406 | 111 1221 74 Parts Sabotaged . | . . . Parts Stolen . | . . . Parts Stripped . | . . . Power Chain Reactions . | . . . Missiles Intercepted . | . . . Alert | -11 -10 -10 ------- Run | Scr Mat Min Peak Influence 238 | 5 238 62 Initial 62 | . 3 62 Average 140 | 1 157 51 Maximum Alert Level 1 | . 1 . Low Security (%) 68 | 100 63 100 Level 1 32 | . 36 . Level 2 . | . . . Level 3 . | . . . Level 4 . | . . . Level 5 . | . . . High Security . | . . . Max Security . | . . . Squads Dispatched 4 | . 4 . Investigation 2 | . 2 . Extermination . | . . . Reinforcement 2 | . 2 . Assault . | . . . Garrison . | . . . Intercept . | . . . Searches Triggered . | . . . Construction Impeded . | . . . Haulers Reinforced . | . . . Active Scanning Responses . | . . . Cargo Convoy Interrupts . | . . . Stealth | -11 -10 -10 --------- Run | Scr Mat Min Distress Signals . | . . . Communications Jammed . | . . . Distress Signals . | . . . Times Spotted 29 | . 19 10 Peak Tracking Total 9 | . 3 9 Tactical Retreats 1 | . . 1 Traps | -11 -10 -10 ------- Run | Scr Mat Min Traps Triggered 3 | . 3 . Indirectly . | . . . Trap Hack Attempts . | . . . Triggered . | . . . Disarmed . | . . . Reprogrammed . | . . . Reused . | . . . Traps Extracted . | . . . Installed . | . . . Triggered . | . . . Machines | -11 -10 -10 ---------- Run | Scr Mat Min Machines Disabled 2 | . 2 . Max in Single Turn 1 | . 1 . Machines Sabotaged . | . . . Garrisons Compromised . | . . . Overloaded Fab Kills . | . . . Hacking | -11 -10 -10 --------- Run | Scr Mat Min Machines Accessed 5 | . 5 . Terminals 5 | . 5 . Fabricators . | . . . Repair Stations . | . . . Recycling Units . | . . . Scanalyzers . | . . . Garrison Access . | . . . Total Hacks 16 | . 16 . Successful 3 | . 3 . Failed 13 | . 13 . Catastrophic 2 | . 2 . Database Lockouts . | . . . Manual 11 | . 11 . Terminals 16 | . 16 . Fabricators . | . . . Repair Stations . | . . . Recycling Units . | . . . Scanalyzers . | . . . Garrison Access . | . . . Terminal Hacks 3 | . 3 . Part Schematic 1 | . 1 . Branch Access Points 1 | . 1 . Zone Layout 1 | . 1 . Fabricator Hacks . | . . . Repair Station Hacks . | . . . Recycling Unit Hacks . | . . . Scanalyzer . | . . . Garrison Access Hacks . | . . . Unauthorized Hacks . | . . . Terminals . | . . . Fabricators . | . . . Repair Stations . | . . . Recycling Units . | . . . Scanalyzers . | . . . Garrison Access . | . . . Data Cores Recovered . | . . . Used . | . . . Hacking Detections 5 | . 5 . Full Trace Events 1 | . 1 . Feedback Events . | . . . Feedback Blocked . | . . . Robot Schematics Acquired . | . . . Robots Built . | . . . Authchips . | . . . Time . | . . . Total Robot Build Rating . | . . . Part Schematics Acquired 1 | . 1 . Parts Built . | . . . Authchips . | . . . Time . | . . . Total Part Build Rating . | . . . Parts Repaired . | . . . Time . | . . . Parts Recycled . | . . . Recycled Matter . | . . . Retrieved Matter . | . . . Retrieved Components . | . . . Parts Scanalyzed . | . . . Part Schematics Acquired . | . . . Parts Damaged . | . . . Bothacking | -11 -10 -10 ------------ Run | Scr Mat Min Used RIF Installer . | . . . Robots Hacked . | . . . Non-combat . | . . . Combat . | . . . Robot Hacks Applied . | . . . Relay Couplers Released . | . . . Fabnet Peak Effective % . | . . . Robots Rewired . | . . . Allies Hacked . | . . . Hacks Repelled . | . . . Allies | -11 -10 -10 -------- Run | Scr Mat Min Total Allies . | . . . Largest Group . | . . . Highest-Rated Group . | . . . Highest-Rated Ally . | . . . Total Orders . | . . . Ally Attacks . | . . . Total Damage . | . . . Kills . | . . . Allies Corrupted . | . . . Allies Melted . | . . . Intel | -11 -10 -10 ------- Run | Scr Mat Min Robot Analysis Total . | . . . Derelict Logs Recovered . | . . . Drone Launches . | . . . Drone Recoveries . | . . . Exploration | -11 -10 -10 ------------- Run | Scr Mat Min Turns Passed 1175 | 89 1024 62 Spaces Moved 556 | 55 469 32 Core 8 | 8 . . Treads 270 | . 238 32 Legs 278 | 47 231 . Wheels . | . . . Hover . | . . . Flight . | . . . Fastest Speed 50 | 50 120 160 Average Speed 167 | 109 174 162 Slowest Speed 240 | 120 190 240 Overloaded Moves . | . . . Propulsion Burnouts . | . . . Robots Hopped . | . . . Cave-ins Triggered . | . . . Exploration Rate (%) 36 | 5 90 15 Regions Visited 2 Branch Regions 1 Pre-discovered Areas . | . . . Known Exits Taken 1 | . 1 . Unknown Exits Taken 1 | 1 . . Scrap Searched . | . . . Spaces Dug . | . . . Terrain Destroyed 22 | . 22 . Melee . | . . . Projectile . | . . . AOE 22 | . 22 . Terrain Rammed . | . . . Walls Destroyed . | . . . Machines Disabled . | . . . Actions | -11 -10 -10 --------- Run | Scr Mat Min Total 688 | 77 574 37 Wait 23 | . 23 . Move 554 | 54 468 32 Hop . | . . . Pick Up 32 | 13 18 1 Fast Attach . | . . . Attach 13 | 7 6 . Detach . | . . . Swap 2 | . 2 . Drop 5 | . 4 1 Fire 58 | 3 53 2 Melee . | . . . Ram . | . . . Kick . | . . . Crush 1 | . . 1 Escape Stasis . | . . . Rewire . | . . . Trap . | . . . Miscellaneous . | . . . Route ------- -11/Scrapyard -10/Materials (discovered 4 exits: [*Mat x2] / *Min x2) -10/Mines History --------- Turn | Location | Event 4 | -11/Scrapyard | Discovered new exit (range 15) 90 | -11/Scrapyard | Entered Materials 310 | -10/Materials | Build established: Mutant 397 | -10/Materials | Discovered new exit (range 10) 490 | -10/Materials | Discovered new exit (range 11) 652 | -10/Materials | Discovered new exit (range 10) 663 | -10/Materials | Lost 3 parts (1p1n1w) 698 | -10/Materials | Identified exit to Mines 935 | -10/Materials | Discovered new exit (range 8) 1114 | -10/Materials | Entered Mines 1115 | -10/Mines | Assembled infested the area 1120 | -10/Mines | Assisted by a Guerilla fighting off Assembled 1133 | -10/Mines | Core integrity fell below 50% 1171 | -10/Mines | Core integrity fell below 20% 1176 | -10/Mines | Destroyed by as-03325 with Assembled Blade Last Messages --------------- 01119_ Dropped Wheel. 01120_ A derelict emerges from the shadows: "You need to get out of here! I've been tracking a group of Assembled to figure out where they're coming from, and they're closing on this area, come on!" 01120_ Acquired Com. Matter Pod. 01122_ Extracted 50 matter. 01123_ DF-L4T(h): "I'll hold them off! Go on ahead or try to find another way!" 01129_ HV Slug penetrates Wall. 01134_ HV Slug penetrates as-09147. 01134_ as-09147 suffers critical hit (Destroy). 01134_ as-09147 destroyed. 01136_ HV Slug penetrates Wall. 01146_ Seismic Detector destroyed. 01149_ as-41525 destroyed. 01156_ Seismic Survey Station disabled. 01166_ Lgt. Treads destroyed. 01166_ Med. Laser destroyed. 01166_ Lgt. Ion Engine destroyed. 01169_ Slammed into T-07 Excavator. 01170_ Hvy. Assault Rifle destroyed. 01173_ T-07 Excavator destroyed. Map ----- +----------------------------------------------------+ | ?????????????????????????????????????????????????? | | ?????????????????????????????????????????????????? | | ?????????????????????????????????????????????????? | | ?????????????????????????????????????????????????? | | ?????????????????????????????????????????????????? | | ?????????????????????????????????????????????????? | | ?????????????????????????????????????????????????? | | ?????????????????????????????????????????????????? | | ?????????????????????????????????????????????????? | | ?????????????????????????????????????????????????? | | ?????????????????????????????????????????????????? | | ???????????????????????????????????????? #???????? | | ??????????????????????????????????????? ##??????? | | ??????????????????????????????????????? ##?????? | | ?????????????????????????????###???#### #?????? | | ????????????????????????????## #?# ??????? | | ????????????????????????????# #??????? | | ????????????????????????????? #???????? | | ?????????????????????????????? """ #????????? | | ??????????????????????????????? """ #?????????? | | ???????????????????????????????# "" #?????????? | | ???????????????????????????????# #??????????? | | ????????????????????????????????# ##?????????? | | ???????????????????????????###### ##????????? | | ???????????????????????#####a ## ##???????? | | ???????????????????????# @aa a ##??????? | | ???????????????????????# ## a= ## ##?????? | | ???????????????????????# ?# | #### #?????? | | ??????????????????????? ??## #####??# % #?????? | | ?????????????????????? ???####??????## ##?????? | | ?????????????????????##????????########## #??????? | | ???????????????????????????????# ## #??????? | | ???????????????????????????????# ## #??????? | | ???????????????????????????????# !! ## #??????? | | ???????????????????????????????# ! ! ## ##?????? | | ???????????????????????????????# !!!! ! #####?? | | ???????????????????????????????# = ! $ | | ???????????????????????????????# #" %###### | | ???????????????????????????????# #" # #???? | | ???????????????????????????????# ##% ###???? | | ???????????????????????????????# ## #?????? | | ???????????????????????????????########## #?????? | | ????????????????????????????????????????# "?????? | | ????????????????????????????????????????# $"?????? | | ????????????????????????????????????????# #?????? | | ????????????????????????????????????????# #?????? | | ???????????????????????????????????????? #?????? | | ???????????????????????????????????????? #?????? | | ???????????????????????????????????????? ??????? | | ???????????????????????????????????????? ??????? | +----------------------------------------------------+ Best States ------------- Heat Dissipation 25 Energy Generation 10 Energy Capacity 125 Matter Stores 300 Matter Capacity 300 Sight Range 16 Terrain Scan Density 10 Evasion (%) 50 Recoil Reduction 2 Item Schematics ----------------- ECM Suite | -10/Materials | Hacked Robot Schematics ------------------ None Fabricated ------------ Nothing Alien Tech Used ----------------- None Achievements -------------- None Challenges ------------ None Game ------ Seed RemoteVortexReconstructor Manual? 0 Play Time 00:12:13 Cumulative 94.7 hours Start 2022.06.04 @ 00:25:01 End 2022.06.04 @ 00:36:44 Sessions 1 Manual Loads 0 Difficulty Rogue Special Mode None Game No. 70 Rogue 70 Adventurer 0 Explorer 0 Win Type - Total 0 Types 0/0/0/0/0/0/0/0/0 Lore% 25 Gallery% 45 Achievement% 34 Wizard Run 0 Options --------- ASCII 0 Keyboard 0 Movement Mouse Keybinds 0 Fullscreen 2 Font 24/Smallcaps Map View 113x50 Tactical HUD 1 Map Filters NONE Filters NONE Steam 1 RUN: 88430f46-aee1-48d5-8bea-9719647690a9